fUSD/lending_fUSD_20260409
["ID","MTS","AMOUNT","RATE_DAILY","PERIOD"]
[420118731,1775691055905,-1327.301698,0.00015685,2]
[420118732,1775691055915,-235.780924,0.00015685,2]
[420118733,1775691055925,-1327.301698,0.00015685,2]
[420118734,1775691055934,-301.444856,0.00015685,2]
[420118735,1775691055944,-177.799501,0.00015685,2]
[420118736,1775691055954,-235.780924,0.00015685,2]
[420118737,1775691055963,-218.047218,0.00015685,2]
[420118738,1775691055973,-151.0,0.00015685,2]
[420118739,1775691055982,-301.444856,0.00015685,2]
[420118740,1775691055992,-738.518437,0.00015685,2]
[420118741,1775691056002,-151.0,0.00015685,2]
[420118742,1775691056011,-218.047218,0.00015685,2]
[420118743,1775691056021,-301.444856,0.00015685,2]
[420118744,1775691056031,-738.518437,0.00015685,2]
[420118745,1775691056040,-218.047218,0.00015685,2]
[420118746,1775691056050,-235.780924,0.00015685,2]
[420118747,1775691056060,-235.780924,0.00015685,2]
[420118748,1775691056070,-301.444856,0.00015685,2]
[420118749,1775691056079,-218.047218,0.00015685,2]
[420118750,1775691056088,-301.444856,0.00015685,2]
[420118751,1775691056098,-218.047218,0.00015685,2]
[420118752,1775691056107,-301.444856,0.00015685,2]
[420118753,1775691056117,-218.047218,0.00015685,2]
[420118754,1775691056127,-301.444856,0.00015685,2]
[420118755,1775691056137,-151.0,0.00015685,2]
[420118756,1775691056147,-301.444856,0.00015685,2]
[420118757,1775691056156,-151.0,0.00015685,2]
[420118758,1775691056168,-301.444856,0.00015685,2]
[420118759,1775691056177,-151.0,0.00015685,2]
[420118760,1775691056187,-151.0,0.00015685,2]
[420118761,1775691056196,-301.444856,0.00015685,2]
[420118762,1775691056206,-151.0,0.00015685,2]
[420118763,1775691056216,-301.444856,0.00015685,2]
[420118764,1775691056225,-392.797224,0.00015685,2]
[420118765,1775691056235,-151.0,0.00015685,2]
[420118766,1775691056244,-301.444856,0.00015685,2]
[420118767,1775691056253,-392.797224,0.00015685,2]
[420118768,1775691056263,-151.0,0.00015685,2]
[420118769,1775691056272,-392.797224,0.00015685,2]
[420118770,1775691056282,-1621.743573,0.00015685,2]
[420118771,1775691056292,-1621.743573,0.00015685,2]
[420118772,1775691056303,-151.0,0.00015685,2]
[420118773,1775691056313,-1621.743573,0.00015685,2]
[420118774,1775691056323,-151.0,0.00015685,2]
[420118775,1775691056332,-392.797224,0.00015685,2]
[420118776,1775691056342,-151.0,0.00015685,2]
[420118777,1775691056351,-392.797224,0.00015685,2]
[420118778,1775691056361,-392.797224,0.00015685,2]
[420118779,1775691056371,-1621.743573,0.00015685,2]
[420118780,1775691056381,-1621.743573,0.00015685,2]
[420118781,1775691056390,-151.0,0.00015685,2]
[420118782,1775691056400,-1621.743573,0.00015685,2]
[420118783,1775691056410,-208.781404,0.00015685,2]
[420118784,1775691056420,-392.797224,0.00015685,2]
[420118785,1775691056431,-392.797224,0.00015685,2]
[420118786,1775691056441,-151.0,0.00015685,2]
[420118787,1775691056451,-392.797224,0.00015685,2]
[420118788,1775691056461,-1621.743573,0.00015685,2]
[420118789,1775691056471,-1621.743573,0.00015685,2]
[420118790,1775691056481,-1621.743573,0.00015685,2]
[420118791,1775691056491,-392.797224,0.00015685,2]
[420118792,1775691056501,-392.797224,0.00015685,2]
[420118793,1775691056511,-151.0,0.00015685,2]
[420118794,1775691056520,-392.797224,0.00015685,2]
[420118795,1775691056530,-1621.743573,0.00015685,2]
[420118796,1775691056539,-151.0,0.00015685,2]
[420118797,1775691056548,-1621.743573,0.00015685,2]
[420118798,1775691056558,-1621.743573,0.00015685,2]
[420118799,1775691056568,-151.0,0.00015685,2]
[420118800,1775691056578,-1327.717186,0.00015685,2]
[420118801,1775691056588,-1327.717186,0.00015685,2]
[420118802,1775691056598,-1327.717186,0.00015685,2]
[420118803,1775691056608,-270.423982,0.00015685,2]
[420118804,1775691056618,-1327.717186,0.00015685,2]
[420118805,1775691056628,-270.423982,0.00015685,2]
[420118806,1775691056638,-1327.717186,0.00015685,2]
[420118807,1775691056648,-270.423982,0.00015685,2]
[420118808,1775691056658,-1327.717186,0.00015685,2]
[420118809,1775691056668,-270.423982,0.00015685,2]
[420118810,1775691056678,-1327.717186,0.00015685,2]
[420118811,1775691056688,-270.423982,0.00015685,2]
[420118812,1775691056698,-1327.717186,0.00015685,2]
[420118813,1775691056707,-270.423982,0.00015685,2]
[420118814,1775691056717,-1327.717186,0.00015685,2]
[420118815,1775691056726,-270.423982,0.00015685,2]
[420118816,1775691056735,-1327.717186,0.00015685,2]
[420118817,1775691056746,-270.423982,0.00015685,2]
[420118818,1775691056755,-151.0,0.00015685,2]
[420118819,1775691056765,-1327.717186,0.00015685,2]
[420118820,1775691056774,-270.423982,0.00015685,2]
[420118821,1775691056784,-151.0,0.00015685,2]
[420118822,1775691056794,-1327.717186,0.00015685,2]
[420118823,1775691056805,-151.0,0.00015685,2]
[420118824,1775691056815,-270.423982,0.00015685,2]
[420118825,1775691056824,-151.0,0.00015685,2]
[420118826,1775691056834,-270.423982,0.00015685,2]
[420118827,1775691056844,-151.0,0.00015685,2]
[420118828,1775691056854,-270.423982,0.00015685,2]
[420118829,1775691056864,-151.0,0.00015685,2]
[420118830,1775691056876,-151.0,0.00015685,2]
[420118831,1775691056886,-151.0,0.00015685,2]
[420118832,1775691056896,-191.0,0.00015685,2]
[420118833,1775691056907,-191.0,0.00015685,2]
[420118834,1775691056917,-191.0,0.00015685,2]
[420118835,1775691056928,-151.0,0.00015685,2]
[420118836,1775691056938,-151.0,0.00015685,2]
[420118837,1775691056948,-151.0,0.00015685,2]
[420118838,1775691056959,-151.0,0.00015685,2]
[420118839,1775691056969,-151.0,0.00015685,2]
[420118840,1775691056979,-151.0,0.00015685,2]
[420118841,1775691056988,-188.012636,0.00015685,2]
[420118842,1775691056998,-256.431471,0.00015685,2]
[420118843,1775691057009,-256.431471,0.00015685,2]
[420118844,1775691057019,-256.431471,0.00015685,2]
[420118845,1775691057028,-151.0,0.00015685,2]
[420118846,1775691057038,-256.431471,0.00015685,2]
[420118847,1775691057048,-151.0,0.00015685,2]
[420118848,1775691057057,-256.431471,0.00015685,2]
[420118849,1775691057067,-256.431471,0.00015685,2]
[420118850,1775691057077,-151.0,0.00015685,2]
[420118851,1775691057086,-256.431471,0.00015685,2]
[420118852,1775691057097,-256.431471,0.00015685,2]
[420118853,1775691057107,-256.431471,0.00015685,2]
[420118854,1775691057117,-256.431471,0.00015685,2]
[420118855,1775691057127,-256.431471,0.00015685,2]
[420118856,1775691057137,-256.431471,0.00015685,2]
[420118857,1775691057146,-218.9779,0.00015685,2]
[420118858,1775691057155,-218.9779,0.00015685,2]
[420118859,1775691057165,-488.535327,0.00015685,2]
[420118860,1775691057175,-218.9779,0.00015685,2]
[420118861,1775691057185,-488.535327,0.00015685,2]
[420118862,1775691057195,-488.535327,0.00015685,2]
[420118863,1775691057204,-218.9779,0.00015685,2]
[420118864,1775691057214,-218.9779,0.00015685,2]
[420118865,1775691057224,-488.535327,0.00015685,2]
[420118866,1775691057234,-218.9779,0.00015685,2]
[420118867,1775691057243,-488.535327,0.00015685,2]
[420118868,1775691057253,-488.535327,0.00015685,2]
[420118869,1775691057262,-218.9779,0.00015685,2]
[420118870,1775691057272,-151.0,0.00015685,2]
[420118871,1775691057281,-218.9779,0.00015685,2]
[420118872,1775691057291,-151.765139,0.00015685,2]
[420118873,1775691057301,-488.535327,0.00015685,2]
[420118874,1775691057310,-218.9779,0.00015685,2]
[420118875,1775691057320,-488.535327,0.00015685,2]
[420118876,1775691057330,-151.0,0.00015685,2]
[420118877,1775691057340,-151.0,0.00015685,2]
[420118878,1775691057351,-488.535327,0.00015685,2]
[420118879,1775691057360,-218.9779,0.00015685,2]
[420118880,1775691057369,-151.0,0.00015685,2]
[420118881,1775691057379,-151.0,0.00015685,2]
[420118882,1775691057388,-218.9779,0.00015685,2]
[420118883,1775691057398,-552.35584,0.00015685,2]
[420118884,1775691057408,-151.0,0.00015685,2]
[420118885,1775691057418,-151.0,0.00015685,2]
[420118886,1775691057428,-218.9779,0.00015685,2]
[420118887,1775691057438,-488.535327,0.00015685,2]
[420118888,1775691057448,-552.35584,0.00015685,2]
[420118889,1775691057458,-488.535327,0.00015685,2]
[420118890,1775691057468,-552.35584,0.00015685,2]
[420118891,1775691057479,-488.535327,0.00015685,2]
[420118892,1775691057489,-151.0,0.00015685,2]
[420118893,1775691057498,-151.0,0.00015685,2]
[420118894,1775691057508,-151.0,0.00015685,2]
[420118895,1775691057517,-243.876632,0.00015685,2]
[420118896,1775691057527,-151.0,0.00015685,2]
[420118897,1775691057536,-552.35584,0.00015685,2]
[420118898,1775691057546,-151.0,0.00015685,2]
[420118899,1775691057561,-552.35584,0.00015685,2]
[420118900,1775691057577,-552.35584,0.00015685,2]
[420118901,1775691057591,-151.0,0.00015685,2]
[420118902,1775691057604,-151.0,0.00015685,2]
[420118903,1775691057618,-552.35584,0.00015685,2]
[420118904,1775691057631,-552.35584,0.00015685,2]
[420118905,1775691057647,-151.0,0.00015685,2]
[420118906,1775691057662,-552.35584,0.00015685,2]
[420118907,1775691057677,-284.145926,0.00015685,2]
[420118908,1775691057694,-151.0,0.00015685,2]
[420118909,1775691057709,-151.0,0.00015685,2]
[420118910,1775691057724,-552.35584,0.00015685,2]
[420118911,1775691057738,-151.0,0.00015685,2]
[420118912,1775691057752,-552.35584,0.00015685,2]
[420118913,1775691057764,-552.355846,0.00015685,2]
[420118914,1775691057778,-151.0,0.00015685,2]
[420118915,1775691057792,-151.0,0.00015685,2]
[420118916,1775691057807,-151.0,0.00015685,2]
[420118917,1775691057823,-506.034413,0.00015685,2]
[420118918,1775691057837,-506.034413,0.00015685,2]
[420118919,1775691057854,-151.0,0.00015685,2]
[420118920,1775691057870,-506.034413,0.00015685,2]
[420118921,1775691057884,-500.0,0.00015694,2]
[420118922,1775691057896,-151.0,0.00015694,2]
[420118923,1775691057908,-227.4535,0.000157,2]
[420118924,1775691057925,-2900.0,0.000157,5]
[420118925,1775691057939,-771.95625003,0.000157,2]
[420118926,1775691057952,-151.76273862,0.000157,2]
[420118927,1775691057968,-174.53,0.00015703,2]
[420118928,1775691057981,-291.7075207,0.00015704,2]
[420118929,1775691057998,-151.0,0.00015707,2]
[420118930,1775691058012,-151.0,0.00015707,2]
[420118931,1775691058025,-151.0,0.00015707,2]
[420118932,1775691058038,-2476600.88874649,0.0001571,2]
[420118933,1775691058053,-216.53625853,0.0001571,2]
[420118934,1775691058066,-147817.39769017,0.0001571,2]
[420118935,1775691061298,-2898.95601897,0.00014449,2]
[420118936,1775691061317,-279.924521,0.00014449,2]
[420118937,1775691061328,-345.11946003,0.00014449,2]
[420118938,1775691061338,-506.034413,0.00015156,2]
[420118939,1775691061347,-483.58569311,0.00015156,2]
[420118940,1775691061359,-22.44871989,0.00015156,2]
[420118941,1775691061369,-506.034413,0.00015685,2]
[420118942,1775691061379,-506.034413,0.00015685,2]
[420118943,1775691061388,-506.034413,0.00015685,2]
[420118944,1775691061398,-506.034413,0.00015685,2]
[420118945,1775691061408,-544.382509,0.0001571,2]
[420118946,1775691061498,-506.034413,0.00015156,2]
[420118947,1775691061507,-506.034413,0.00015685,2]
[420118948,1775691061517,-506.034413,0.00015685,2]
[420118949,1775691061527,-506.034413,0.00015685,2]
[420118950,1775691061536,-506.034413,0.00015685,2]
[420118951,1775691061546,-32271.93679749,0.0001571,2]
[420118952,1775691061575,-445.3297252,0.00015685,2]
[420118953,1775691061587,-60.7046878,0.00015685,2]
[420118954,1775691061596,-3425.12645722,0.0001571,2]
[420118955,1775691061608,-653.74439782,0.0001571,2]
[420118956,1775691079994,4500.0,0.00010414,2]
[420118961,1775692009556,-152.406,9.6e-05,4]
[420118966,1775692233163,-829.98709775,9.575e-05,2]
[420118967,1775692233188,-370.01290225,9.575e-05,2]
[420118968,1775692233198,-300.0,9.575e-05,2]
[420118969,1775692233208,-300.0,9.575e-05,2]
[420118970,1775692233217,-11878.44,9.576e-05,2]
[420118971,1775692233227,-165.58928487,9.6e-05,4]
[420118972,1775692233237,-250.0,9.632e-05,2]
[420118973,1775692233247,-500.0,9.665e-05,2]
[420118974,1775692233256,-250.0,9.854e-05,2]
[420118975,1775692233265,-2900.0,9.9e-05,3]
[420118976,1775692233275,-166.29811874,9.999e-05,2]
[420118977,1775692233285,-5800.0,0.0001,3]
[420118978,1775692233295,-1000.0,0.00010213,2]
[420118979,1775692233305,-500.0,0.00010213,2]
[420118980,1775692233315,-308.48519392,0.00010213,2]
[420118981,1775692233324,-500.0,0.00010213,2]
[420118982,1775692233334,-500.0,0.00010213,2]
[420118983,1775692233344,-500.0,0.00010213,2]
[420118984,1775692233354,-500.0,0.00010213,2]
[420118985,1775692233364,-258.49226963,0.00010213,2]
[420118986,1775692233374,-500.0,0.00010213,2]
[420118987,1775692233384,-500.0,0.00010213,2]
[420118988,1775692233394,-500.0,0.00010213,2]
[420118989,1775692233404,-500.0,0.00010213,2]
[420118990,1775692233414,-500.0,0.00010213,2]
[420118991,1775692233424,-500.0,0.00010213,2]
[420118992,1775692233435,-500.0,0.00010213,2]
[420118993,1775692233445,-500.0,0.00010213,2]
[420118994,1775692233454,-500.0,0.00010213,2]
[420118995,1775692233464,-500.0,0.00010213,2]
[420118996,1775692233474,-500.0,0.00010213,2]
[420118997,1775692233484,-500.0,0.00010213,2]
[420118998,1775692233494,-500.0,0.00010213,2]
[420118999,1775692233504,-500.0,0.00010213,2]
[420119000,1775692233515,-500.0,0.00010213,2]
[420119001,1775692233525,-500.0,0.00010213,2]
[420119002,1775692233535,-500.0,0.00010213,2]
[420119003,1775692233544,-500.0,0.00010213,2]
[420119004,1775692233554,-500.0,0.00010213,2]
[420119005,1775692233564,-500.0,0.00010213,2]
[420119006,1775692233573,-500.0,0.00010213,2]
[420119007,1775692233583,-500.0,0.00010213,2]
[420119008,1775692233593,-500.0,0.00010213,2]
[420119009,1775692233602,-500.0,0.00010213,2]
[420119010,1775692233611,-500.0,0.00010213,2]
[420119011,1775692233621,-500.0,0.00010213,2]
[420119012,1775692233631,-500.0,0.00010213,2]
[420119013,1775692233640,-500.0,0.00010213,2]
[420119014,1775692233651,-500.0,0.00010213,2]
[420119015,1775692233661,-500.0,0.00010213,2]
[420119016,1775692233671,-549.10565396,0.00010213,2]
[420119017,1775692233681,-500.0,0.00010213,2]
[420119018,1775692233692,-500.0,0.00010213,2]
[420119019,1775692233703,-289.24207936,0.00010213,2]
[420119020,1775692233713,-319.16512334,0.00010213,2]
[420119021,1775692233723,-894.6894789,0.00010213,2]
[420119022,1775692233733,-894.6894789,0.00010213,2]
[420119023,1775692233743,-894.6894789,0.00010213,2]
[420119024,1775692233753,-894.6894789,0.00010213,2]
[420119025,1775692233762,-894.6894789,0.00010213,2]
[420119026,1775692233772,-894.6894789,0.00010213,2]
[420119027,1775692233781,-894.6894789,0.00010213,2]
[420119028,1775692233790,-894.6894789,0.00010213,2]
[420119029,1775692233800,-894.6894789,0.00010213,2]
[420119030,1775692233809,-894.6894789,0.00010213,2]
[420119031,1775692233820,-894.6894789,0.00010213,2]
[420119032,1775692233829,-894.6894789,0.00010213,2]
[420119033,1775692233839,-894.6894789,0.00010213,2]
[420119034,1775692233849,-894.6894789,0.00010213,2]
[420119035,1775692233859,-894.6894789,0.00010213,2]
[420119036,1775692233868,-894.6894789,0.00010213,2]
[420119037,1775692233877,-894.6894789,0.00010213,2]
[420119038,1775692233887,-894.6894789,0.00010213,2]
[420119039,1775692233897,-894.6894789,0.00010213,2]
[420119040,1775692233906,-894.6894789,0.00010213,2]
[420119041,1775692233916,-894.6894789,0.00010213,2]
[420119042,1775692233927,-894.6894789,0.00010213,2]
[420119043,1775692233937,-894.6894789,0.00010213,2]
[420119044,1775692233947,-894.6894789,0.00010213,2]
[420119045,1775692233956,-894.6894789,0.00010213,2]
[420119046,1775692233966,-894.6894789,0.00010213,2]
[420119047,1775692233976,-894.6894789,0.00010213,2]
[420119048,1775692233986,-894.6894789,0.00010213,2]
[420119049,1775692233996,-894.6894789,0.00010213,2]
[420119050,1775692234006,-894.6894789,0.00010213,2]
[420119051,1775692234016,-894.6894789,0.00010213,2]
[420119052,1775692234026,-894.6894789,0.00010213,2]
[420119053,1775692234036,-894.6894789,0.00010213,2]
[420119054,1775692234046,-894.6894789,0.00010213,2]
[420119055,1775692234056,-894.6894789,0.00010213,2]
[420119056,1775692234066,-894.6894789,0.00010213,2]
[420119057,1775692234076,-894.6894789,0.00010213,2]
[420119058,1775692234085,-894.6894789,0.00010213,2]
[420119059,1775692234095,-894.6894789,0.00010213,2]
[420119060,1775692234105,-894.6894789,0.00010213,2]
[420119061,1775692234114,-888.90189976,0.00010213,2]
[420119062,1775692234124,-888.90189976,0.00010213,2]
[420119063,1775692234134,-888.90189976,0.00010213,2]
[420119064,1775692234143,-888.90189976,0.00010213,2]
[420119065,1775692234153,-888.90189976,0.00010213,2]
[420119066,1775692234163,-888.90189976,0.00010213,2]
[420119067,1775692234173,-888.90189976,0.00010213,2]
[420119068,1775692234182,-888.90189976,0.00010213,2]
[420119069,1775692234193,-888.90189976,0.00010213,2]
[420119070,1775692234203,-888.90189976,0.00010213,2]
[420119071,1775692234212,-888.90189976,0.00010213,2]
[420119072,1775692234221,-888.90189976,0.00010213,2]
[420119073,1775692234231,-888.90189976,0.00010213,2]
[420119074,1775692234241,-888.90189976,0.00010213,2]
[420119075,1775692234251,-888.90189976,0.00010213,2]
[420119076,1775692234260,-150.0,0.00010213,2]
[420119077,1775692234270,-9618.10127241,0.00010214,2]
[420119078,1775692234284,-93312.56092759,0.00010214,2]
[420119079,1775692234294,-4151.2258,0.00010314,2]
[420119080,1775692234304,-13170.89693403,0.00010314,2]
[420119081,1775692234318,-4899.41946597,0.00010314,2]
[420119082,1775692234328,-1660.9685,0.00010314,2]
[420119083,1775692234339,-2500.0,0.00010314,2]
[420119084,1775692234348,-162.00655431,0.00010314,2]
[420119085,1775692234358,-166.29811873,0.00010314,2]
[420119086,1775692234367,-2323.6532,0.00010384,2]
[420119087,1775692234376,-150.0,0.000104,2]
[420119088,1775692234386,-151.0,0.00010408,2]
[420119089,1775692234395,-151.0,0.00010408,2]
[420119090,1775692234405,-151.0,0.00010408,2]
[420119091,1775692234415,-151.0,0.00010408,2]
[420119092,1775692234425,-151.0,0.00010408,2]
[420119093,1775692234434,-151.0,0.00010408,2]
[420119094,1775692234444,-500.0,0.00010408,2]
[420119095,1775692234454,-151.0,0.00010408,2]
[420119096,1775692234463,-500.0,0.00010408,2]
[420119097,1775692234473,-151.0,0.00010408,2]
[420119098,1775692234483,-500.0,0.00010408,2]
[420119099,1775692234492,-151.0,0.00010408,2]
[420119100,1775692234502,-500.0,0.00010408,2]
[420119101,1775692234511,-151.0,0.00010408,2]
[420119102,1775692234521,-500.0,0.00010408,2]
[420119103,1775692234531,-151.0,0.00010408,2]
[420119104,1775692234541,-151.0,0.00010408,2]
[420119105,1775692234550,-500.0,0.00010408,2]
[420119106,1775692234560,-151.0,0.00010408,2]
[420119107,1775692234569,-500.0,0.00010408,2]
[420119108,1775692234579,-200.0,0.00010408,2]
[420119109,1775692234588,-500.0,0.00010408,2]
[420119110,1775692234598,-151.0,0.00010408,2]
[420119111,1775692234607,-500.0,0.00010408,2]
[420119112,1775692234617,-151.0,0.00010408,2]
[420119113,1775692234627,-151.0,0.00010408,2]
[420119114,1775692234636,-500.0,0.00010408,2]
[420119115,1775692234646,-395.59162672,0.00010408,2]
[420119116,1775692234655,-500.0,0.00010408,2]
[420119117,1775692234665,-237.05172416,0.00010408,2]
[420119118,1775692234674,-176.73187577,0.00010408,2]
[420119119,1775692234683,-1156.41848616,0.00010408,2]
[420119120,1775692234694,-155.0,0.00010412,2]
[420119121,1775692234703,-500.0,0.00010413,2]
[420119122,1775692234713,-500.0,0.00010413,2]
[420119123,1775692234724,-500.0,0.00010413,2]
[420119124,1775692234733,-500.0,0.00010413,2]
[420119125,1775692234742,-500.0,0.00010413,2]
[420119126,1775692234752,-435.19172532,0.00010413,2]
[420119127,1775692234762,-214.10694269,0.00010413,2]
[420119128,1775692234772,-500.0,0.00010413,2]
[420119129,1775692234782,-500.0,0.00010413,2]
[420119130,1775692234791,-500.0,0.00010413,2]
[420119131,1775692234801,-500.0,0.00010413,2]
[420119132,1775692234810,-435.71838035,0.00010413,2]
[420119133,1775692234819,-500.0,0.00010413,2]
[420119134,1775692234829,-500.0,0.00010413,2]
[420119135,1775692234838,-555.85747796,0.00010413,2]
[420119136,1775692234848,-487.9696812,0.00010413,2]
[420119137,1775692234859,-555.58,0.00010413,2]
[420119138,1775692234868,-2760.82,0.00010413,2]
[420119139,1775692234877,-160.111,0.00010413,2]
[420119140,1775692234887,-1099.20357934,0.00010413,3]
[420119141,1775692234897,-111079.79468218,0.00010414,2]
[420119142,1775692234910,-83409.5601273,0.00010414,2]
[420119143,1775692237699,-151.76273863,0.00010404,2]
[420119144,1775692237709,-1301696.80730497,0.00010414,2]
[420119193,1775692239935,-500.0,0.00010213,2]
[420119194,1775692239945,-131.56277751,0.00010414,2]
[420119195,1775692239958,-3682.27510804,0.00010414,2]
[420119196,1775692239967,-2618.0,0.00010414,3]
[420119197,1775692239977,-15.07033946,0.00010414,3]
[420119198,1775692239989,-139.92966054,0.00010414,3]
[420119199,1775692239999,-155.0,0.00010414,3]
[420119200,1775692240009,-392.57733286,0.00010473,2]
[420119201,1775692240019,-500.0,0.00010473,2]
[420119202,1775692240029,-281.88719221,0.00010473,2]
[420119203,1775692240039,-500.0,0.00010473,2]
[420119204,1775692240049,-500.0,0.00010473,2]
[420119205,1775692240058,-500.0,0.00010473,2]
[420119206,1775692240068,-500.0,0.00010487,2]
[420119207,1775692240078,-1000.0,0.00010514,2]
[420119208,1775692240088,-420.0,0.00010533,2]
[420119209,1775692240099,-1680.0,0.00010533,2]
[420119210,1775692240109,-250.0,0.0001056,2]
[420119211,1775692240119,-3038.92218939,0.0001056,2]
[420119212,1775692240131,-561.22993896,0.0001056,2]
[420119213,1775692240144,-1399.84787165,0.0001056,2]
[420119214,1775692240154,-193.0,0.0001056,2]
[420119215,1775692240164,-555.58,0.00010687,2]
[420119216,1775692240173,-150.0,0.00010692,2]
[420119217,1775692240183,-470.69802626,0.00010761,2]
[420119218,1775692240194,-8800.0,0.000109,3]
[420119219,1775692240205,-200.0,0.00010956,2]
[420119220,1775692240215,-465.78655156,0.00010956,2]
[420119221,1775692240225,-500.0,0.00010958,2]
[420119222,1775692240234,-500.0,0.00010958,3]
[420119223,1775692240245,-500.0,0.00010958,4]
[420119224,1775692240255,-500.0,0.00010958,5]
[420119225,1775692240265,-500.0,0.00010958,6]
[420119226,1775692240275,-500.0,0.00010958,7]
[420119227,1775692240286,-500.0,0.00010959,2]
[420119228,1775692240296,-226.04203092,0.00010959,2]
[420119229,1775692240306,-1905.28,0.00010959,2]
[420119230,1775692240316,-169.52746474,0.00010959,2]
[420119231,1775692240327,-555.58,0.00010961,2]
[420119232,1775692240338,-1000.0,0.00011021,2]
[420119233,1775692240348,-1000.0,0.00011021,2]
[420119234,1775692240358,-1000.0,0.00011021,2]
[420119235,1775692240368,-2618.0,0.00011024,3]
[420119236,1775692240378,-151.502,0.00011087,2]
[420119237,1775692240388,-1099.20357934,0.00011098,3]
[420119238,1775692240398,-31122.70156048,0.00011099,2]
[420119239,1775692240408,-31122.70156041,0.00011099,2]
[420119240,1775692240424,-255.0,0.00011224,2]
[420119241,1775692240434,-555.58,0.00011235,2]
[420119242,1775692240445,-155.0,0.00011453,2]
[420119243,1775692240455,-31122.70156041,0.00011486,2]
[420119244,1775692240466,-200.0,0.00011504,2]
[420119245,1775692240477,-555.58984954,0.00011509,2]
[420119246,1775692240486,-203.61,0.00011558,2]
[420119247,1775692240497,-1000.0,0.00011568,2]
[420119248,1775692240507,-1500.0,0.00011568,2]
[420119249,1775692240518,-1000.0,0.00011568,2]
[420119250,1775692240528,-155.0,0.00011573,3]
[420119251,1775692240538,-587.0,0.00011586,2]
[420119252,1775692240549,-2351.0,0.00011586,2]
[420119253,1775692240560,-2618.0,0.00011634,3]
[420119254,1775692240570,-173.275,0.000117,2]
[420119255,1775692240581,-531.58090884,0.0001196,2]
[420119256,1775692240592,-150.0,0.00011965,2]
[420119257,1775692240603,-266.846312,0.00011966,2]
[420119258,1775692240614,-419.23559863,0.00012,2]
[420119259,1775692240625,-500.0,0.00012023,8]
[420119260,1775692240636,-291.86800938,0.00012052,2]
[420119261,1775692240647,-31122.70156041,0.00012075,2]
[420119262,1775692240658,-162.00655431,0.00012176,2]
[420119263,1775692240671,-2618.0,0.00012243,3]
[420119264,1775692240682,-433.0,0.00012337,2]
[420119265,1775692240695,-155.0,0.00012494,2]
[420119266,1775692240706,-33915.0,0.0001263,2]
[420119267,1775692240717,-31122.70156041,0.00012664,2]
[420119268,1775692240728,-35470.50124879,0.00012668,2]
[420119269,1775692240738,-155.0,0.00012731,3]
[420119270,1775692240749,-823.0,0.00012745,2]
[420119271,1775692240760,-3292.0,0.00012745,2]
[420119272,1775692240770,-2618.0,0.00012853,3]
[420119274,1775692240780,-160.0,0.00012991,2]
[420119275,1775692240790,-570.527317,0.00012991,2]
[420119276,1775692240801,-981.054634,0.00012991,2]
[420119277,1775692240811,-160.0,0.00012991,2]
[420119278,1775692240821,-167.971977,0.00012991,2]
[420119279,1775692240831,-175.943954,0.00012991,2]
[420119280,1775692240841,-247.473871,0.00012991,2]
[420119281,1775692240852,-250.0,0.00013,2]
[420119282,1775692240862,-200.1616,0.000131,2]
[420119283,1775692240872,-1905.28,0.00013122,2]
[420119284,1775692240883,-160.0,0.00013156,2]
[420119285,1775692240893,-191.979731,0.00013156,2]
[420119286,1775692240903,-1184.460596,0.00013156,2]
[420119287,1775692240914,-2208.921193,0.00013156,2]